bitfinex-derivatives/quotes_SOLF0:USTF0_20250301
["timestamp","ask_amount","ask_price","bid_price","bid_amount"]
[1740841671177,7.1408,140.11,140.07,11.3905]
[1740841671371,10.58,140.1,140.07,11.3905]
[1740841672263,10.62707913,140.1,140.07,11.44356471]
[1740841673469,10.62707913,140.1,140.07,0.05306471]
[1740841673868,7.1419,140.09,140.07,0.05306471]
[1740841674268,10.62707913,140.1,140.07,0.05306471]
[1740841674473,17.76837913,140.1,140.07,0.05306471]
[1740841674971,10.62707913,140.1,140.07,0.05306471]
[1740841675777,10.62707913,140.1,140.08,7.1419]
[1740841676579,0.04707913,140.1,140.09,7.1416]
[1740841676768,7.1388,140.15,140.08,8.0146]
[1740841676969,10.58,140.14,140.08,8.0146]
[1740841677167,10.58,140.14,140.1,7.1409]
[1740841677970,0.0467115,140.13,140.11,0.05377257]
[1740841679584,0.0467115,140.13,140.12,7.1401]
[1740841682077,10.58,140.18,140.17,7.1374]
[1740841682271,10.58,140.19,140.09,3.7982]
[1740841682477,10.58,140.2,140.09,3.7982]
[1740841682686,10.58,140.2,140.19,7.1364]
[1740841683288,10.63001875,140.21,140.2,7.136]
[1740841683482,10.58,140.21,140.2,7.136]
[1740841684687,10.62532043,140.22,140.21,7.1355]
[1740841684888,10.62532043,140.22,140.19,0.05401239]
[1740841685087,10.62532043,140.22,140.2,7.1358]
[1740841686173,10.62532043,140.22,140.21,7.1355]
[1740841686574,0.04532043,140.22,140.21,7.1355]
[1740841686780,10.56,140.25,140.19,0.05401239]
[1740841687088,10.58,140.26,140.24,7.134]
[1740841687290,29.64207619,140.29,140.2,3.8128]
[1740841687477,10.58,140.28,140.25,7.1332]
[1740841687891,10.63283122,140.28,140.25,7.18086188]
[1740841688091,10.63283122,140.28,140.26,7.1329]
[1740841688393,0.05283122,140.28,140.25,0.04766188]
[1740841688584,29.64207619,140.29,140.28,7.132]
[1740841689189,17.56687619,140.29,140.28,7.132]
[1740841689493,78.57106431,140.3,140.29,7.1315]
[1740841689690,78.61755231,140.3,140.29,7.1315]
[1740841690190,72.57975231,140.3,140.29,7.1315]
[1740841690390,5.49125772,140.3,140.29,7.1315]
[1740841690594,5.772e-05,140.3,140.29,7.1315]
[1740841692294,5.772e-05,140.3,140.29,10.6915]
[1740841692590,5.772e-05,140.3,140.29,21.3715]
[1740841694493,5.772e-05,140.3,140.29,7.1315]
[1740841695087,5.772e-05,140.3,140.28,7.17690786]
[1740841695388,5.772e-05,140.3,140.28,0.04520786]
[1740841696891,5.772e-05,140.3,140.29,7.1315]
[1740841698687,5.772e-05,140.3,140.29,10.6915]
[1740841699197,5.772e-05,140.3,140.29,21.4715]
[1740841699598,5.772e-05,140.3,140.29,179.82600667]
[1740841699804,7.8765,140.43,140.41,7.1253]
[1740841700291,7.8765,140.43,140.4,7.1258]
[1740841700595,7.8765,140.43,140.34,11.04]
[1740841700788,7.8765,140.43,140.36,7.1276]
[1740841700990,0.05036034,140.4,140.37,0.0481278]
[1740841701189,11.12,140.39,140.31,228.26]
[1740841701399,11.12,140.39,140.38,7.1269]
[1740841701702,7.8765,140.43,140.31,239.44]
[1740841701882,11.18,140.44,140.31,239.44]
[1740841702082,3.8929,140.46,140.31,397.79450667]
[1740841702083,15.1729,140.46,140.31,397.79450667]
[1740841702288,15.1729,140.46,140.42,7.1246]
[1740841702689,0.04686755,140.45,140.31,399.39125801]
[1740841702890,0.04686755,140.45,140.43,0.04861893]
[1740841703085,11.32,140.47,140.43,0.04861893]
[1740841703388,0.05257131,140.45,140.44,0.04904502]
[1740841703789,11.34,140.48,140.36,169.69450667]
[1740841703992,0.04492067,140.46,140.43,0.0524962]
[1740841704988,0.04492067,140.46,140.45,7.1233]
[1740841705290,0.04492067,140.46,140.43,0.0524962]
[1740841707000,0.04492067,140.46,140.44,7.1234]
[1740841707302,0.04492067,140.46,140.43,0.0524962]
[1740841707598,0.04492067,140.46,140.45,7.1233]
[1740841708189,0.04492067,140.46,140.43,0.0524962]
[1740841708701,0.04492067,140.46,140.44,7.1238]
[1740841709092,0.04492067,140.46,140.43,0.0524962]
[1740841710008,11.66,140.45,140.43,0.0524962]
[1740841710200,15.2938,140.45,140.33,11.66]
[1740841710498,3.8755,140.44,140.38,7.1268]
[1740841710705,7.1247,140.43,140.38,7.1268]
[1740841711491,0.05465452,140.42,140.39,7.17822613]
[1740841711905,0.05465452,140.42,140.39,0.05192613]
[1740841714005,7.17995452,140.42,140.39,0.05192613]
[1740841714410,0.05465452,140.42,140.39,0.05192613]
[1740841715310,7.17955452,140.42,140.39,0.05192613]
[1740841715492,0.05465452,140.42,140.39,7.17792613]
[1740841715897,0.05465452,140.42,140.39,0.05192613]
[1740841716108,0.05465452,140.42,140.39,7.17812613]
[1740841716900,0.05465452,140.42,140.39,0.05192613]
[1740841719204,0.05465452,140.42,140.36,7.1277]
[1740841719416,7.1259,140.4,140.35,7.1281]
[1740841719609,18.9259,140.4,140.35,7.1281]
[1740841720300,0.04845308,140.39,140.29,11.82]
[1740841720606,0.04845308,140.39,140.36,0.05104827]
[1740841721109,0.04845308,140.39,140.37,7.1271]
[1740841722302,0.04845308,140.39,140.38,7.1269]
[1740841723102,0.04845308,140.39,140.37,7.1272]
[1740841725009,0.04845308,140.39,140.38,7.1269]
[1740841727715,21.41,140.37,140.32,11.27166227]
[1740841728009,13.22490738,140.36,140.34,41.47288786]
[1740841728206,7.1284,140.35,140.34,15.98138786]
[1740841728395,16.78490738,140.36,140.33,31.64375526]
[1740841728906,1.2864254,140.35,140.33,31.69554471]
[1740841729412,7.1289,140.34,140.33,31.69554471]
[1740841730400,13.27365136,140.36,140.33,0.05178945]
[1740841731301,20.40175136,140.36,140.33,0.05178945]
[1740841732007,11.84874398,140.36,140.33,0.05178945]
[1740841733211,7.1289,140.34,140.33,0.05178945]
[1740841734402,7.1288,140.35,140.33,0.05178945]
[1740841735207,7.1289,140.34,140.33,0.05178945]
[1740841736213,10.6889,140.34,140.33,8.945e-05]
[1740841737008,4.84662697,140.34,140.2,3.7711]
[1740841737219,1.28662697,140.33,140.2,3.7711]
[1740841737406,26.0561,140.36,140.2,3.7711]
[1740841737604,1.28678138,140.35,140.2,10.9068]
[1740841737805,1.28678138,140.35,140.2,3.7711]
[1740841738007,1.28678138,140.35,140.17,393.25060098]
[1740841738312,0.05415615,140.29,140.26,0.05008649]
[1740841738620,11.82,140.28,140.17,393.25060098]
[1740841738819,7.1341,140.24,140.18,7.137]
[1740841739007,11.82,140.28,140.22,0.04609197]
[1740841739204,0.05316466,140.23,140.22,0.04609197]
[1740841739416,11.82,140.28,140.22,0.04609197]
[1740841739608,0.05092272,140.24,140.22,0.04609197]
[1740841740211,11.82,140.28,140.22,0.04609197]
[1740841741011,11.82,140.28,140.23,7.1343]
[1740841741212,11.82,140.28,140.22,0.04609197]
[1740841741412,0.04832018,140.27,140.22,0.04609197]
[1740841744613,0.04832018,140.27,140.25,7.1333]
[1740841745122,0.04832018,140.27,140.22,0.04609197]
[1740841745712,0.04832018,140.27,140.24,7.1337]
[1740841745914,0.04832018,140.27,140.22,0.04609197]
[1740841746208,0.04832018,140.27,140.26,7.133]
[1740841747016,0.04832018,140.27,140.25,0.04741204]
[1740841747213,0.04832018,140.27,140.25,7.18071204]
[1740841747619,0.04832018,140.27,140.25,0.04741204]
[1740841749221,0.04832018,140.27,140.25,7.18061204]
[1740841749431,0.04832018,140.27,140.25,0.04741204]
[1740841749816,0.04832018,140.27,140.26,7.133]
[1740841751029,11.86,140.31,140.25,0.04741204]
[1740841751214,29.58595145,140.35,140.25,0.04741204]
[1740841751417,13.18609265,140.34,140.22,172.62440667]
[1740841751620,29.58595145,140.35,140.22,158.35450667]
[1740841751813,11.92,140.33,140.23,14.2688]
[1740841752017,11.92,140.33,140.22,158.35450667]
[1740841752222,0.05189726,140.29,140.27,0.0528766]
[1740841752728,0.05189726,140.29,140.28,7.132]
[1740841754328,11.92,140.33,140.27,0.0528766]
[1740841754329,19.0495,140.33,140.29,7.1313]
[1740841755430,0.04711905,140.32,140.29,7.1313]
[1740841755734,7.17711905,140.32,140.28,7.1318]
[1740841756239,0.04711905,140.32,140.28,7.1318]
[1740841757333,0.04711905,140.32,140.29,7.1313]
[1740841759535,0.04711905,140.32,140.3,7.1309]
[1740841761240,0.04711905,140.32,140.31,7.1304]
[1740841761442,11.9,140.35,140.29,4.0117]
[1740841761939,11.9,140.36,140.32,7.1296]
[1740841762736,0.05401371,140.35,140.33,0.05071614]
[1740841765337,0.05401371,140.35,140.33,7.18011614]
[1740841765543,0.05401371,140.35,140.33,0.05071614]
[1740841765928,0.05401371,140.35,140.33,7.18011614]
[1740841766239,0.05401371,140.35,140.33,0.05071614]
[1740841766439,0.05401371,140.35,140.34,7.1289]
[1740841769540,11.94,140.39,140.33,0.05071614]
[1740841769936,7.1261,140.4,140.33,0.05071614]
[1740841770136,13.20564817,140.39,140.35,7.1281]
[1740841770437,11.92,140.39,140.29,4.0117]
[1740841770643,0.04520827,140.38,140.36,7.17773907]
[1740841770831,0.04520827,140.38,140.36,7.18136247]
[1740841771136,0.04520827,140.38,140.36,0.05356247]
[1740841772044,0.04520827,140.38,140.36,7.18116247]
[1740841772537,0.04520827,140.38,140.36,0.05356247]
[1740841772943,0.04520827,140.38,140.37,7.1274]
[1740841773532,0.04520827,140.38,140.36,0.05356247]
[1740841773730,0.04520827,140.38,140.37,7.1274]
[1740841773934,29.58595145,140.43,140.36,0.05356247]
[1740841774139,1.28539237,140.42,140.38,7.1265]
[1740841774339,11.86,140.41,140.38,7.1265]
[1740841774843,18.985,140.42,140.38,7.1265]
[1740841775040,18.985,140.42,140.39,7.17479491]
[1740841775041,0.04529677,140.41,140.39,7.17479491]
[1740841775241,11.86,140.42,140.29,162.36620667]
[1740841775439,0.05085602,140.41,140.39,0.05418381]
[1740841775638,11.86,140.42,140.31,14.2604]
[1740841775838,0.04795318,140.41,140.39,0.04675906]
[1740841776037,0.05430764,140.41,140.39,0.04771783]
[1740841777343,0.05430764,140.41,140.39,7.17381783]
[1740841777935,0.05430764,140.41,140.4,7.1259]
[1740841781447,36.70905145,140.46,140.42,7.1245]
[1740841781644,13.08515955,140.45,140.4,3.72]
[1740841781849,29.58595145,140.46,140.4,3.72]
[1740841782143,29.58595145,140.46,140.44,7.1235]
[1740841782349,29.58595145,140.46,140.41,3.8457]
[1740841782543,29.58595145,140.46,140.44,7.1235]
[1740841782847,0.05165002,140.45,140.42,0.0454398]
[1740841783240,0.05165002,140.45,140.43,7.1243]
[1740841784249,0.05165002,140.45,140.42,0.0454398]
[1740841785050,7.17515002,140.45,140.42,0.0454398]
[1740841785440,0.05165002,140.45,140.42,0.0454398]
[1740841787150,1.33678486,140.45,140.42,0.0454398]
[1740841787339,0.05165002,140.45,140.42,0.0454398]
[1740841787543,7.17505002,140.45,140.42,0.0454398]
[1740841787843,0.05165002,140.45,140.42,0.0454398]
[1740841788245,0.05165002,140.45,140.42,7.1702398]
[1740841789454,0.05165002,140.45,140.43,7.1243]
[1740841789954,0.05165002,140.45,140.44,7.1238]
[1740841790454,12.18,140.48,140.46,7.1227]
[1740841790851,120.72182198,140.5,140.43,11.6055]
[1740841791150,90.35552198,140.5,140.49,7.1213]
[1740841791556,2.62222198,140.5,140.49,7.1213]
[1740841791739,117.90416828,140.51,140.5,7.1208]
[1740841792146,0.04757182,140.51,140.5,7.1208]
[1740841792956,0.04757182,140.51,140.48,0.04577959]
[1740841793455,0.04757182,140.51,140.49,7.1209]
[1740841793844,0.04757182,140.51,140.48,0.04577959]
[1740841794560,12.54757182,140.51,140.48,0.04577959]
[1740841795355,16.57357182,140.51,140.48,0.04577959]
[1740841796855,12.54757182,140.51,140.48,0.04577959]
[1740841797246,12.54757182,140.51,140.49,7.1213]
[1740841798053,12.54757182,140.51,140.5,7.1208]
[1740841798253,0.04757182,140.51,140.5,7.1208]
[1740841799867,0.04757182,140.51,140.48,0.04577959]
[1740841800457,12.5,140.57,140.48,0.04577959]
[1740841800656,12.5,140.57,140.44,247.1177192]
[1740841801063,12.5,140.57,140.53,7.1189]
[1740841801363,12.5,140.57,140.46,12.5]
[1740841801563,1.33122477,140.56,140.54,0.05149531]
[1740841801771,1.28411232,140.56,140.44,247.1177192]
[1740841802062,7.1191,140.54,140.48,7.1218]
[1740841802269,12.5,140.57,140.44,247.1177192]
[1740841802270,3.6503,140.53,140.44,247.1177192]
[1740841802468,17.71221485,140.52,140.44,247.1177192]
[1740841802668,23.548,140.52,140.46,7.1225]
[1740841802864,0.04770909,140.49,140.47,0.05266525]
[1740841804663,7.1218,140.48,140.47,0.05266525]
[1740841805875,7.1225,140.47,140.42,7.1245]
[1740841806075,19.6025,140.47,140.41,7.1253]
[1740841806267,19.6025,140.47,140.39,3.6541]
[1740841806670,7.1239,140.44,140.34,159.20230118]
[1740841806862,7.1239,140.44,140.34,0.84779451]
[1740841807066,7.6024,140.46,140.38,0.04952741]
[1740841807067,0.04687031,140.4,140.38,0.04952741]
[1740841807267,0.04687031,140.4,140.38,7.17602741]
[1740841807472,14.7257,140.46,140.38,7.17602741]
[1740841807665,0.05264563,140.4,140.38,7.17602741]
[1740841808074,14.7257,140.46,140.38,7.17602741]
[1740841808269,0.05334062,140.4,140.38,7.17602741]
[1740841808465,0.05334062,140.4,140.38,0.04952741]
[1740841808666,12.46,140.42,140.38,0.04952741]
[1740841808862,0.04540985,140.4,140.38,0.04952741]
[1740841811079,0.04540985,140.4,140.26,131.41679681]
[1740841811465,1.28535947,140.4,140.26,131.41679681]
[1740841811669,7.1274,140.37,140.3,7.1306]
[1740841811878,16.4814,140.36,140.3,7.1306]
[1740841812077,12.5,140.36,140.26,131.41679681]
[1740841812468,0.05439934,140.34,140.32,0.04861954]
[1740841812681,0.05439934,140.34,140.33,7.1294]
[1740841814486,0.05439934,140.34,140.32,0.04861954]
[1740841814976,7.18359934,140.34,140.32,0.04861954]
[1740841815871,0.05439934,140.34,140.32,0.04861954]
[1740841819187,0.05439934,140.34,140.33,7.1294]
[1740841819391,0.05439934,140.34,140.32,0.04861954]
[1740841819682,0.05439934,140.34,140.33,7.1294]
[1740841819883,0.05439934,140.34,140.32,0.04861954]
[1740841820290,0.05439934,140.34,140.33,7.1294]
[1740841821290,0.05439934,140.34,140.32,7.17841954]
[1740841821994,0.05439934,140.34,140.33,7.1294]
[1740841824486,0.05439934,140.34,140.32,7.17841954]
[1740841824686,0.05439934,140.34,140.32,0.04861954]
[1740841826380,7.18339934,140.34,140.32,0.04861954]
[1740841826984,7.1294,140.33,140.32,0.04861954]
[1740841827185,3.7502,140.33,140.32,0.04861954]
[1740841827392,3.7502,140.33,140.23,228.04]
[1740841827594,7.1302,140.32,140.27,7.1324]
[1740841827798,12.46,140.31,140.27,7.1324]
[1740841827997,12.46,140.31,140.21,7.4537]
[1740841828494,0.05199544,140.27,140.26,7.133]
[1740841828694,12.46,140.31,140.25,0.04991463]
[1740841828886,0.04603674,140.27,140.25,0.04991463]
[1740841829086,0.04603674,140.27,140.26,7.133]
[1740841830986,3.7502,140.33,140.25,0.04991463]
[1740841831693,3.7502,140.33,140.31,7.1301]
[1740841831884,3.7502,140.33,140.22,3.3557]
[1740841832299,0.05407582,140.29,140.26,0.04486648]
[1740841832488,12.44,140.34,140.26,0.04486648]
[1740841832692,12.44,140.34,140.33,7.1294]
[1740841833190,12.44,140.34,140.23,170.79450667]
[1740841833497,12.44,140.34,140.31,7.1301]
[1740841833683,12.44,140.34,140.27,0.05339581]
[1740841833882,12.49376756,140.34,140.23,12.44]
[1740841834085,12.49376756,140.34,140.29,0.04688886]
[1740841834293,0.05452995,140.3,140.29,0.04688886]
[1740841834496,12.44,140.34,140.29,0.04688886]
[1740841834799,7.5302,140.41,140.29,0.04688886]
[1740841834999,13.74571896,140.4,140.29,0.04688886]
[1740841835196,1.28571896,140.39,140.23,12.44]
[1740841835400,7.1277,140.37,140.34,7.1289]
[1740841835789,0.04514813,140.37,140.34,7.1289]
[1740841836099,0.04514813,140.37,140.34,7.17397737]
[1740841836890,0.04514813,140.37,140.34,0.04507737]
[1740841838499,7.1282,140.36,140.34,0.04507737]
[1740841838800,12.42,140.35,140.34,0.04507737]
[1740841838999,16.2821,140.35,140.34,0.04507737]
[1740841839200,16.2821,140.35,140.31,7.1302]
[1740841839506,20.0256,140.35,140.31,7.1302]
[1740841840286,20.0256,140.35,140.32,0.05229672]
[1740841841805,27.1541,140.35,140.32,0.05229672]
[1740841842191,20.0256,140.35,140.3,7.1308]
[1740841842391,7.129,140.34,140.24,158.35450667]
[1740841842599,7.129,140.34,140.23,12.44]
[1740841842794,7.129,140.34,140.29,7.1312]
[1740841843503,0.0518968,140.33,140.3,0.0501463]
[1740841844001,7.1813968,140.33,140.3,0.0501463]
[1740841844405,0.0518968,140.33,140.3,7.1810463]
[1740841846903,0.0518968,140.33,140.3,0.0501463]
[1740841847100,7.1812968,140.33,140.3,0.0501463]
[1740841847804,0.0518968,140.33,140.3,0.0501463]
[1740841848107,7.1814968,140.33,140.3,0.0501463]
[1740841848709,1.2862341,140.32,140.21,7.4537]
[1740841848902,0.0518968,140.33,140.19,134.65694664]
[1740841848903,0.0518968,140.33,140.22,7.135]
[1740841849210,7.1334,140.26,140.19,134.65694664]
[1740841849411,12.32,140.25,140.19,39.40945755]
[1740841849907,0.04818958,140.23,140.21,0.04813761]
[1740841852711,0.04818958,140.23,140.21,7.18363761]
[1740841854611,0.04818958,140.23,140.21,0.04813761]
[1740841857019,0.04818958,140.23,140.21,7.18333761]
[1740841857215,0.04818958,140.23,140.21,0.04813761]
[1740841859107,0.04818958,140.23,140.22,7.135]
[1740841860314,0.04818958,140.23,140.21,0.04813761]
[1740841860315,0.04818958,140.23,140.21,7.18343761]
[1740841861012,0.04818958,140.23,140.21,0.04813761]
[1740841861221,0.04818958,140.23,140.22,7.135]
[1740841863321,0.04818958,140.23,140.21,0.04813761]
[1740841864126,0.04818958,140.23,140.14,7.951]
[1740841864326,5.25912981,140.24,140.14,7.951]
[1740841864516,5.25912981,140.24,140.15,7.1383]
[1740841864517,7.1363,140.2,140.15,7.1383]
[1740841864717,19.3363,140.2,140.12,3.4044]
[1740841865022,12.2,140.2,140.17,7.1375]
[1740841865219,0.0527911,140.17,140.02,155.18722522]
[1740841865424,1.28759398,140.19,140.04,203.70904286]
[1740841865618,7.1394,140.14,140.06,142.74543532]
[1740841865812,12.22,140.13,140.06,142.74543532]
[1740841866124,12.22,140.13,140.06,135.60263532]
[1740841866417,12.22,140.2,140.09,0.05263061]
[1740841866809,12.22,140.2,140.06,135.60263532]
[1740841867212,12.22,140.2,140.12,7.1398]
[1740841867417,12.22,140.2,140.06,135.60263532]
[1740841867623,12.22,140.2,140.05,2.18444263]
[1740841867820,0.05230304,140.15,140.12,0.05071528]
[1740841869830,0.05230304,140.15,140.13,7.1393]
[1740841870035,0.05230304,140.15,140.12,0.05071528]
[1740841870235,0.05230304,140.15,140.13,7.1392]
[1740841870827,0.05230304,140.15,140.12,0.05071528]
[1740841871132,12.25230304,140.15,140.12,0.05071528]
[1740841872328,12.25230304,140.15,140.12,7.19061528]
[1740841872528,12.25230304,140.15,140.12,0.05071528]
[1740841873132,12.25230304,140.15,140.12,7.19061528]
[1740841874133,12.25230304,140.15,140.12,0.05071528]
[1740841874323,12.25230304,140.15,140.13,7.1396]
[1740841875331,12.25230304,140.15,140.14,7.1391]
[1740841875534,12.25230304,140.15,140.12,0.05071528]
[1740841875829,12.25230304,140.15,140.12,7.19051528]
[1740841876029,12.25230304,140.15,140.12,0.05071528]
[1740841876328,12.25230304,140.15,140.13,7.1393]
[1740841876834,12.25230304,140.15,140.12,0.05071528]
[1740841877039,3.7072,140.14,140.13,7.1396]
[1740841878924,3.7072,140.14,140.12,0.05071528]
[1740841879125,3.7072,140.14,140.12,7.19061528]
[1740841879635,3.7072,140.14,140.12,0.05071528]
[1740841880225,3.7072,140.14,140.12,7.19051528]
[1740841880729,3.7072,140.14,140.12,0.05071528]
[1740841881735,3.7072,140.14,140.05,160.5389493]
[1740841882033,7.1398,140.13,140.09,7.1413]
[1740841882231,3.7072,140.14,140.05,2.18444263]
[1740841882435,3.7072,140.14,140.0,228.38]
[1740841882631,1.28801468,140.13,140.0,228.38]
[1740841882832,0.05376629,140.09,140.07,0.05100296]
[1740841883137,12.15376629,140.09,140.07,0.05100296]
[1740841883931,19.29546629,140.09,140.07,0.05100296]
[1740841884131,12.15376629,140.09,140.07,0.05100296]
[1740841886739,19.29546629,140.09,140.07,0.05100296]
[1740841887431,12.15376629,140.09,140.07,0.05100296]
[1740841887740,7.1422,140.08,140.07,0.05100296]
[1740841887942,12.15376629,140.09,140.07,0.05100296]
[1740841888638,19.29566629,140.09,140.07,0.05100296]
[1740841889038,12.15376629,140.09,140.07,0.05100296]
[1740841889344,19.29566629,140.09,139.97,11.2733]
[1740841889543,19.2419,140.09,139.97,11.2733]
[1740841889743,12.1,140.09,139.97,11.2733]
[1740841890141,12.1,140.09,139.98,14.2945]
[1740841890338,12.1,140.09,139.97,11.2733]
[1740841890540,0.04628212,140.05,140.02,0.04896543]
[1740841891049,0.04628212,140.05,140.04,7.1442]
[1740841892056,0.04628212,140.05,140.03,7.1445]
[1740841892233,0.04628212,140.05,140.02,0.04896543]
[1740841892434,12.02,140.04,140.02,0.04896543]
[1740841893544,12.02,140.04,140.02,7.19416543]
[1740841893841,12.02,140.04,140.02,0.04896543]
[1740841894046,12.02,140.04,140.03,7.1447]
[1740841894244,0.04628212,140.05,140.02,0.04896543]
[1740841894635,0.04628212,140.05,140.04,7.1442]
[1740841896538,0.04628212,140.05,140.02,0.04896543]
[1740841896946,0.04628212,140.05,140.04,7.1442]
[1740841897147,0.04628212,140.05,140.02,0.04896543]
[1740841898947,7.1447,140.04,140.02,0.04896543]
[1740841900051,7.19028212,140.05,140.02,7.19376543]
[1740841900449,0.04628212,140.05,140.02,0.04896543]
[1740841900950,0.04628212,140.05,140.04,7.1442]
[1740841905358,14.5764,140.12,140.09,7.1413]
[1740841905654,3.8945,140.13,139.98,11.88]
[1740841905655,11.86,140.11,140.03,3.7892]
[1740841905844,11.86,140.11,140.04,3.4668]
[1740841906046,7.1393,140.14,140.04,3.4668]
[1740841906354,11.86,140.13,140.04,3.4668]
[1740841906556,0.05005206,140.1,140.08,0.04607049]
[1740841907460,0.05005206,140.1,140.09,7.1416]
[1740841909159,11.86,140.13,140.12,7.1401]
[1740841909652,3.8307,140.16,140.15,7.1386]
[1740841909854,11.84,140.18,140.04,3.4668]
[1740841910261,11.84,140.18,140.17,7.1376]
[1740841910958,0.05342613,140.19,140.18,7.1371]
[1740841911345,0.04761608,140.2,140.13,7.1392]
[1740841911550,29.38380982,140.21,140.11,179.98040667]
[1740841911757,0.05321822,140.18,140.15,0.0468292]
[1740841912945,3.7822,140.25,140.19,7.1363]
[1740841912946,11.84,140.24,140.19,7.1363]
[1740841913349,11.84,140.24,140.13,11.84]
[1740841913560,11.84,140.24,140.13,170.19450667]
[1740841913758,1.28706588,140.23,140.13,158.35450667]
[1740841914060,7.1371,140.18,140.17,0.0503865]
[1740841914255,11.89316138,140.19,140.17,0.0503865]
[1740841915150,19.02996138,140.19,140.17,0.0503865]
[1740841916964,7.1371,140.18,140.17,0.0503865]
[1740841917260,3.9085,140.18,140.09,170.19450667]
[1740841917470,3.9085,140.18,140.09,158.35450667]
[1740841918460,0.05033565,140.15,140.12,7.18794461]
[1740841919055,0.05033565,140.15,140.12,0.04804461]
[1740841919868,7.18913565,140.15,140.12,0.04804461]
[1740841920063,0.05033565,140.15,140.12,0.04804461]
[1740841920263,11.76,140.14,140.12,0.04804461]
[1740841920451,18.8994,140.14,140.12,0.04804461]
[1740841920654,11.76,140.14,140.12,0.04804461]
[1740841921161,7.1396,140.13,140.12,0.04804461]
[1740841921561,15.7632,140.14,140.07,7.1423]
[1740841921758,7.1404,140.12,140.07,7.1423]
[1740841922160,15.7632,140.14,140.06,7.1431]
[1740841922369,5.27856958,140.13,139.99,7.5512]
[1740841922567,1.28816958,140.12,139.99,7.5512]
[1740841922753,0.04766651,140.07,140.05,0.04611472]
[1740841922959,11.74,140.08,140.05,0.04611472]
[1740841923358,0.04897092,140.07,140.05,0.04611472]
[1740841925859,11.72,140.12,140.05,0.04611472]
[1740841926260,11.72,140.12,140.03,170.07450667]
[1740841926463,7.7306,140.17,140.03,170.07450667]
[1740841926769,18.8589,140.15,140.03,170.07450667]
[1740841927169,0.04498942,140.11,140.09,0.04555709]
[1740841927772,0.04498942,140.11,140.1,7.1407]
[1740841929061,11.72,140.15,140.09,0.04555709]
[1740841929268,11.72,140.15,140.14,7.1391]
[1740841929774,7.7306,140.17,140.06,3.7383]
[1740841929975,3.822,140.17,140.06,162.09280667]
[1740841930268,3.9921,140.18,140.06,162.09280667]
[1740841930571,3.9378,140.21,140.12,7.1401]
[1740841930572,8.082e-05,140.13,140.12,7.1401]
[1740841930769,19.5489,140.21,140.1,158.35450667]
[1740841930962,19.5489,140.21,140.18,7.1368]
[1740841931162,7.8089,140.21,140.11,3.7699]
[1740841931361,19.5689,140.21,140.11,162.12440667]
[1740841931769,0.05030228,140.17,140.15,0.04829796]
[1740841933679,0.05030228,140.17,140.15,7.18669796]
[1740841933881,0.05030228,140.17,140.15,0.04829796]
[1740841934378,0.05030228,140.17,140.16,7.1381]
[1740841934784,0.05030228,140.17,140.15,0.04829796]
[1740841936083,11.78,140.16,140.07,3.6996]
[1740841936477,18.9183,140.16,140.11,7.1404]
[1740841936873,11.78,140.16,140.11,7.1404]
[1740841937083,7.79293025,140.15,140.12,0.05256606]
[1740841937983,14.93193025,140.15,140.12,0.05256606]
[1740841938388,7.79293025,140.15,140.12,0.05256606]
[1740841938591,3.91903025,140.15,140.12,0.05256606]
[1740841939173,0.05083025,140.15,140.14,7.1391]
[1740841942084,0.05083025,140.15,140.12,0.05256606]
[1740841942687,0.05083025,140.15,140.12,7.19246606]
[1740841942891,0.05083025,140.15,140.12,0.05256606]
[1740841943986,7.1394,140.14,140.12,0.05256606]
[1740841944189,10.8046,140.14,140.12,0.05256606]
[1740841944484,3.6652,140.14,140.12,0.05256606]
[1740841945285,7.1396,140.13,140.12,0.05256606]
[1740841945788,10.8045,140.14,140.12,0.05256606]
[1740841945986,3.6652,140.14,140.12,0.05256606]
[1740841946989,7.1396,140.13,140.12,0.05256606]
[1740841947697,3.6652,140.14,140.08,7.1419]
[1740841947877,3.6652,140.14,140.03,7.1217]
[1740841948282,7.1416,140.1,140.06,7.1429]
[1740841948590,11.68,140.1,139.99,7.096]
[1740841948787,3.6655,140.09,139.99,7.096]
[1740841948987,0.04880868,140.06,140.04,7.1438]
[1740841949293,0.04880868,140.06,140.03,0.05287002]
[1740841949494,0.04880868,140.06,140.05,7.1437]